{"text_format":"1","workbook":"xlsx","n_sheets":1,"sheets":["Feuil1"],"not_rendered":{"charts":0,"images":0,"macros":0,"external_links":0,"defined_names":0,"comments":1,"pivot_tables":1},"unopened":[],"bounds":{"document_bytes":16777216,"sheet_cells":100000,"rows_first":2000,"rows_last":500,"rows_between":2000,"halvings":0,"cell_chars":16384,"cell_head_chars":4096},"cells_cut":0,"cells_raw":0,"read":"whole","date_system":"1900"}

{"sheet":"Feuil1","index":0,"n_rows":9,"n_cols":7,"rows_kept":9,"cut":false,"hidden":false,"merged":[]}
["Nb","Intitulé","Montant","Formule",null,"Valeurs"]
[{"$f":"1","v":1},100,{"$f":"Tableau1[[#This Row],[Intitulé]]","v":100},{"$f":"_xlfn.FORMULATEXT(Tableau1[[#This Row],[Montant]])","v":"=[@Intitulé]"},null,"Somme de Nb",8]
[{"$f":"1","v":1},2503,{"$f":"Tableau1[[#This Row],[Intitulé]]","v":2503},{"$f":"_xlfn.FORMULATEXT(Tableau1[[#This Row],[Montant]])","v":"=[@Intitulé]"},null,"Nombre de Intitulé",5]
[{"$f":"1","v":1},"Deux guillemets",{"$f":"\"\"","v":""},{"$f":"_xlfn.FORMULATEXT(Tableau1[[#This Row],[Montant]])","v":"=\"\""},null,"Chiffres de Intitulé",2]
[{"$f":"1","v":1},"Deux guillemets",{"$f":"\"\"","v":""},{"$f":"_xlfn.FORMULATEXT(Tableau1[[#This Row],[Montant]])","v":"=\"\""},null,"Nombre de Montant",7]
[{"$f":"1","v":1},null,{"$f":"Tableau1[[#This Row],[Intitulé]]","v":0},{"$f":"_xlfn.FORMULATEXT(Tableau1[[#This Row],[Montant]])","v":"=[@Intitulé]"},null,"Chiffres de Montant",5]
[{"$f":"1","v":1},null,{"$f":"Tableau1[[#This Row],[Intitulé]]","v":0},{"$f":"_xlfn.FORMULATEXT(Tableau1[[#This Row],[Montant]])","v":"=[@Intitulé]"}]
[{"$f":"1","v":1},null,{"$f":"Tableau1[[#This Row],[Intitulé]]","v":0},{"$f":"_xlfn.FORMULATEXT(Tableau1[[#This Row],[Montant]])","v":"=[@Intitulé]"}]
[{"$f":"1","v":1},"Rien",null,"Aucune formule"]